fUST/lending_fUST_20260107
["ID","MTS","AMOUNT","RATE_DAILY","PERIOD"]
[400656780,1767771038426,-1000.0,0.00013699,2]
[400656781,1767771038436,-152.05252624,0.00013699,2]
[400656782,1767771038446,-500.0,0.00013699,2]
[400656783,1767771038456,-500.0,0.00013699,2]
[400656784,1767771038465,-500.0,0.00013699,2]
[400656785,1767771038475,-500.0,0.00013699,2]
[400656786,1767771038486,-500.0,0.00013699,2]
[400656787,1767771038496,-500.0,0.00013699,2]
[400656788,1767771038506,-1000.0,0.00013821,2]
[400656789,1767771038515,-1000.0,0.00013821,2]
[400656790,1767771038525,-1000.0,0.00013821,2]
[400656791,1767771038535,-1000.0,0.00013821,2]
[400656792,1767771038544,-1000.0,0.00013821,2]
[400656793,1767771038553,-8929.0,0.0001386,2]
[400656794,1767771038563,-420.0,0.00014039,2]
[400656795,1767771038580,-300.0,0.00014079,2]
[400656796,1767771038599,-267.78496317,0.00014175,2]
[400656797,1767771038609,-600.0,0.00014221,2]
[400656798,1767771038619,-1000.0,0.00014247,2]
[400656799,1767771038629,-1000.0,0.00014247,2]
[400656800,1767771038638,-506.91111939,0.00014247,2]
[400656801,1767771038650,-1000.0,0.00014247,2]
[400656802,1767771038671,-1000.0,0.00014247,2]
[400656803,1767771038691,-1000.0,0.00014247,2]
[400656804,1767771038700,-1500.0,0.00014368,2]
[400656805,1767771038709,-500.0,0.00014368,2]
[400656806,1767771038718,-1500.0,0.00014368,2]
[400656807,1767771038731,-1500.0,0.00014368,2]
[400656808,1767771038740,-1500.0,0.00014368,2]
[400656809,1767771038750,-720.0,0.00014532,2]
[400656810,1767771038759,-296.94394199,0.00014745,2]
[400656811,1767771038768,-900.0,0.00014768,2]
[400656812,1767771038777,-1002.73058689,0.00014795,2]
[400656813,1767771038787,-636.08782837,0.00014795,2]
[400656814,1767771038797,-1500.0,0.00014795,2]
[400656815,1767771038807,-1500.0,0.00014795,2]
[400656816,1767771038816,-1500.0,0.00014795,2]
[400656817,1767771038825,-594.48760347,0.000149,2]
[400656818,1767771038835,-2000.0,0.00014916,2]
[400656819,1767771038844,-2000.0,0.00014916,2]
[400656820,1767771038854,-2000.0,0.00014916,2]
[400656821,1767771038863,-2000.0,0.00014916,2]
[400656822,1767771038873,-1000.0,0.00015,2]
[400656823,1767771038883,-1018.09986707,0.00015,2]
[400656824,1767771038892,-31548.41630509,0.00015,2]
[400656825,1767771038902,-150.8752938,0.00015,2]
[400656826,1767771038911,-502.26303891,0.00015,2]
[400656827,1767771038920,-100000.0,0.00015028,2]
[400656828,1767771038930,-800.0,0.00015068,2]
[400656829,1767771038940,-1200.0,0.00015316,2]
[400656830,1767771038950,-2000.0,0.00015342,2]
[400656831,1767771038959,-2000.0,0.00015342,2]
[400656832,1767771038969,-2000.0,0.00015342,2]
[400656833,1767771038978,-587.0,0.00015399,2]
[400656834,1767771038987,-2500.0,0.00015464,2]
[400656835,1767771038997,-2500.0,0.00015464,2]
[400656836,1767771039006,-2500.0,0.00015464,2]
[400656837,1767771039016,-2500.0,0.00015464,2]
[400656838,1767771039025,-6189.31986766,0.00015625,2]
[400656839,1767771039035,-643.7462493,0.00015672,3]
[400656840,1767771039046,-1203.39831266,0.00015864,2]
[400656841,1767771039055,-2500.0,0.0001589,2]
[400656842,1767771039065,-2500.0,0.0001589,2]
[400656843,1767771039074,-2500.0,0.0001589,2]
[400656844,1767771039084,-8929.0,0.00015939,2]
[400656845,1767771039093,-864.0,0.00015985,2]
[400656846,1767771039103,-215.68492171,0.00016,2]
[400656847,1767771039112,-3000.0,0.00016012,2]
[400656848,1767771039121,-3000.0,0.00016012,2]
[400656849,1767771039131,-3000.0,0.00016012,2]
[400656850,1767771039140,-3000.0,0.00016012,2]
[400656851,1767771039150,-2499.87380725,0.00016052,2]
[400656852,1767771039159,-6640.35775662,0.00016059,2]
[400656853,1767771039169,-1600.0,0.00016164,2]
[400656854,1767771039179,-4051.84332465,0.00016276,2]
[400656855,1767771039188,-3000.0,0.00016438,2]
[400656856,1767771039198,-3000.0,0.00016438,2]
[400656857,1767771039208,-3000.0,0.00016438,2]
[400656858,1767771039218,-774.29394276,0.0001656,2]
[400656859,1767771039228,-3500.0,0.0001656,2]
[400656860,1767771039237,-3500.0,0.0001656,2]
[400656861,1767771039247,-2627.52709265,0.0001656,2]
[400656862,1767771039256,-250.0,0.00016706,2]
[400656863,1767771039266,-342.24047552,0.00016745,2]
[400656864,1767771039276,-823.0,0.00016891,2]
[400656865,1767771039285,-3500.0,0.00016986,2]
[400656866,1767771039294,-3500.0,0.00016986,2]
[400656867,1767771039304,-3500.0,0.00016986,2]
[400656868,1767771039313,-868.60266275,0.00017108,6]
[400656869,1767771039322,-4000.0,0.00017108,2]
[400656870,1767771039332,-4000.0,0.00017108,2]
[400656871,1767771039341,-2400.0,0.0001726,2]
[400656872,1767771039350,-5216.39833869,0.00017384,2]
[400656873,1767771039359,-4000.0,0.00017534,2]
[400656874,1767771039369,-4000.0,0.00017534,2]
[400656875,1767771039378,-4000.0,0.00017534,2]
[400656876,1767771039387,-1000.0,0.00017583,2]
[400656877,1767771039397,-4500.0,0.00017656,2]
[400656878,1767771039406,-4500.0,0.00017656,2]
[400656879,1767771039416,-27429.36672841,0.00018,2]
[400656880,1767771039425,-882.05613913,0.00018082,2]
[400656881,1767771039435,-4500.0,0.00018082,2]
[400656882,1767771039444,-4500.0,0.00018082,2]
[400656883,1767771039454,-9099.68,0.00018082,3]
[400656884,1767771039463,-5000.0,0.00018204,2]
[400656885,1767771039472,-5000.0,0.00018204,2]
[400656886,1767771039482,-802.30074464,0.00018356,2]
[400656887,1767771039491,-6189.31986766,0.0001845,2]
[400656888,1767771039621,-1152.0,0.00018528,2]
[400656889,1767771039631,-1111.4126219,0.00018544,9]
[400656890,1767771039641,-838.56279606,0.0001863,2]
[400656891,1767771039650,-5000.0,0.0001863,2]
[400656892,1767771039659,-387.53700904,0.00018745,2]
[400656893,1767771039668,-5500.0,0.00018752,2]
[400656894,1767771039678,-5500.0,0.00018752,2]
[400656895,1767771039687,-1041.66666667,0.00018876,2]
[400656896,1767771039697,-160.0,0.00018876,2]
[400656897,1767771039707,-5624.71606632,0.0001897,2]
[400656898,1767771039716,-3509.95391387,0.0001897,2]
[400656899,1767771039728,-1434.94128664,0.00019,2]
[400656900,1767771039738,-2603.49,0.00019,2]
[400656901,1767771039747,-17949.00191859,0.00019,2]
[400656903,1767771039757,-7000.62506532,0.00019,2]
[400656905,1767771039767,-441.1157,0.00019178,5]
[400656907,1767771039776,-441.1157,0.00019178,2]
[400656908,1767771039785,-441.1157,0.00019178,3]
[400656909,1767771039795,-441.1157,0.00019178,5]
[400656912,1767771039806,-441.1157,0.00019178,2]
[400656913,1767771039815,-441.1157,0.00019178,3]
[400656914,1767771039824,-441.1157,0.00019178,5]
[400656915,1767771039833,-441.1157,0.00019178,2]
[400656916,1767771039842,-441.1157,0.00019178,3]
[400656917,1767771039852,-441.1157,0.00019178,5]
[400656918,1767771039861,-441.1157,0.00019178,2]
[400656919,1767771039871,-441.1157,0.00019178,3]
[400656920,1767771039880,-441.1157,0.00019178,5]
[400656921,1767771039889,-441.1157,0.00019178,2]
[400656922,1767771039899,-441.1157,0.00019178,3]
[400656923,1767771039908,-441.1157,0.00019178,5]
[400656924,1767771039918,-352.8926,0.00019178,2]
[400656925,1767771039927,-352.8926,0.00019178,3]
[400656926,1767771039936,-352.8926,0.00019178,4]
[400656927,1767771039945,-441.1157,0.00019178,2]
[400656928,1767771039955,-367.4243,0.00019178,3]
[400656930,1767771039964,-900.0,0.00019178,2]
[400656932,1767771039974,-5011.36258874,0.00019178,2]
[400656934,1767771039983,-25963.54,0.000192,2]
[400656936,1767771039992,-258.12,0.000192,2]
[400656937,1767771040001,-243.07,0.000192,2]
[400656939,1767771040010,-2200.51,0.000192,2]
[400656941,1767771040019,-167.78,0.000192,2]
[400656943,1767771040028,-497.81118302,0.00019205,5]
[400656945,1767771040037,-159.0,0.00019205,3]
[400656946,1767771040046,-6640.35775662,0.00019272,2]
[400656947,1767771040055,-331.75246461,0.000193,2]
[400656948,1767771040064,-6000.0,0.000193,2]
[400656949,1767771040074,-1000.0,0.00019342,2]
[400656950,1767771040083,-244.0,0.00019342,2]
[400656951,1767771040092,-346.1,0.0001972,2]
[400656952,1767771040102,-1549.57669197,0.00019726,2]
[400656953,1767771040112,-6500.0,0.00019848,2]
[400656954,1767771040121,-1369.56034753,0.0001998,11]
[400656955,1767771040131,-1972.0,0.0002,2]
[400656956,1767771040140,-210.20532748,0.0002,2]
[400656957,1767771040149,-181.25348447,0.0002,2]
[400656958,1767771040159,-632.73035631,0.0002,2]
[400656959,1767771040167,-14686.18217338,0.0002,2]
[400656960,1767771040177,-300.05779371,0.0002,7]
[400656962,1767771040186,-371.23034443,0.0002,2]
[400656963,1767771040194,-599.02649061,0.0002,2]
[400656965,1767771040203,-696.84890501,0.0002,2]
[400656966,1767771040212,-23000.0,0.0002,2]
[400656967,1767771040221,-202.52017028,0.0002,2]
[400656968,1767771040230,-503.77278596,0.0002,2]
[400656969,1767771040239,-159.84863644,0.0002,2]
[400656970,1767771040249,-459.50208546,0.0002013,2]
[400656971,1767771040258,-1613.0,0.00020323,2]
[400656972,1767771040268,-2002.67735813,0.00020396,2]
[400656973,1767771040277,-1387.87898167,0.0002061,2]
[400656974,1767771040286,-295.0,0.00020618,2]
[400656976,1767771040295,-295.0,0.00020621,2]
[400656978,1767771040305,-295.0,0.0002067,2]
[400656980,1767771040314,-432.83354257,0.00020745,2]
[400656982,1767771040323,-295.0,0.00020754,2]
[400656984,1767771040332,-295.0,0.00020764,2]
[400656986,1767771040341,-256.20863618,0.000209,2]
[400656987,1767771040350,-295.0,0.00020944,2]
[400656988,1767771040359,-295.0,0.0002095,2]
[400656989,1767771040368,-277.06974618,0.00021,2]
[400656990,1767771040377,-1081.32871409,0.00021,10]
[400656991,1767771040386,-50000.0,0.00021,2]
[400656992,1767771040395,-295.0,0.00021119,2]
[400656993,1767771040405,-295.0,0.00021247,2]
[400656994,1767771040414,-6189.31986766,0.00021275,2]
[400656995,1767771040423,-1000.0,0.00021276,10]
[400656996,1767771040432,-492.0,0.00021276,10]
[400656997,1767771040441,-295.0,0.00021281,2]
[400656998,1767771040450,-346.1,0.00021332,2]
[400656999,1767771040459,-168.0,0.00021397,4]
[400657000,1767771040468,-1641.20271215,0.00021416,14]
[400657001,1767771040477,-295.0,0.0002142,2]
[400657002,1767771040486,-295.0,0.00021478,2]
[400657003,1767771040495,-295.0,0.00021492,2]
[400657004,1767771040504,-25963.54,0.000215,2]
[400657005,1767771040514,-1038.80075693,0.000215,2]
[400657006,1767771040523,-12849.42882741,0.000215,2]
[400657007,1767771040532,-295.0,0.00021582,2]
[400657008,1767771040542,-295.0,0.00021656,2]
[400657009,1767771040551,-2200.51,0.000217,2]
[400657010,1767771040560,-295.0,0.00021719,2]
[400657011,1767771040569,-295.0,0.00021745,2]
[400657012,1767771040579,-295.0,0.00021944,2]
[400657013,1767771040589,-568.10876052,0.0002196,10]
[400657014,1767771040598,-295.0,0.00021979,2]
[400657015,1767771040608,-33706.85557229,0.00022,2]
[400657016,1767771040617,-305.3,0.00022,2]
[400657017,1767771040626,-258.12,0.00022,7]
[400657018,1767771040635,-243.07,0.00022,7]
[400657019,1767771040644,-156961.0173922,0.00022,30]
[400657020,1767771040653,-1908.17,0.00022,7]
[400657021,1767771040662,-90000.0,0.00022,2]
[400657022,1767771040671,-171.84386487,0.00022,10]
[400657023,1767771040680,-64723.72893292,0.00022,7]
[400657024,1767771040689,-828.88420571,0.00022,20]
[400657025,1767771040698,-295.0,0.00022094,2]
[400657026,1767771040707,-295.0,0.00022255,2]
[400657027,1767771040716,-1461.0,0.00022292,2]
[400657028,1767771040728,-295.0,0.00022319,2]
[400657029,1767771040737,-295.0,0.00022396,2]
[400657030,1767771040746,-300.0,0.00022466,2]
[400657031,1767771040755,-6640.35775662,0.00022486,2]
[400657032,1767771040764,-1032.71087693,0.000225,2]
[400657033,1767771040773,-295.0,0.00022501,2]
[400657034,1767771040782,-295.0,0.00022507,2]
[400657035,1767771040791,-478.13007609,0.00022745,2]
[400657036,1767771040800,-1924.9589275,0.00022852,17]
[400657037,1767771040809,-346.1,0.00022945,2]
[400657038,1767771040818,-1041.66666667,0.00023,3]
[400657039,1767771040827,-450.0,0.00023014,2]
[400657040,1767771040836,-2200.0,0.00023228,2]
[400657041,1767771040845,-500.0,0.00023299,2]
[400657042,1767771040854,-1000.0,0.00023403,10]
[400657043,1767771040863,-791.0,0.00023403,10]
[400657044,1767771040871,-2200.0,0.00023517,2]
[400657045,1767771040883,-600.0,0.00023562,2]
[400657046,1767771040892,-248.14949882,0.00023585,2]
[400657047,1767771040902,-2200.0,0.0002359,2]
[400657048,1767771040911,-1908.17,0.000236,7]
[400657049,1767771040919,-2200.51,0.000237,14]
[400657050,1767771040928,-2200.0,0.00023907,2]
[400657051,1767771040937,-23906.54289923,0.00024,2]
[400657052,1767771040946,-245.28508092,0.00024,60]
[400657053,1767771040955,-1734.693215,0.00024,2]
[400657054,1767771040963,-465.43647205,0.00024,2]
[400657055,1767771040972,-618.86,0.00024,14]
[400657056,1767771040981,-1041.66666667,0.00024,7]
[400657057,1767771040990,-25963.54,0.000241,2]
[400657058,1767771040999,-258.12,0.000241,7]
[400657059,1767771041008,-243.07,0.000241,7]
[400657060,1767771041017,-6189.31986766,0.000241,2]
[400657061,1767771041026,-750.0,0.0002411,2]
[400657062,1767771041035,-504346.20009652,0.00024142,2]
[400657063,1767771041044,-30240.28138531,0.000242,2]
[400657064,1767771041054,-2200.0,0.0002437,2]
[400657065,1767771041063,-2200.0,0.00024557,2]
[400657066,1767771041071,-346.1,0.00024557,2]
[400657067,1767771041080,-9099.66,0.000246,3]
[400657068,1767771041089,-156724.58563049,0.0002465,2]
[400657069,1767771041098,-513.79712507,0.0002465,2]
[400657070,1767771041107,-151.0,0.0002465,2]
[400657071,1767771041116,-151.0,0.0002465,2]
[400657072,1767771041126,-183.522133,0.0002465,2]
[400657073,1767771041135,-900.0,0.00024658,2]
[400657074,1767771041144,-200.0,0.00024658,2]
[400657075,1767771041154,-380.0,0.00024658,2]
[400657076,1767771041163,-181.0,0.00024685,14]
[400657077,1767771041171,-523.42660962,0.00024745,2]
[400657078,1767771041180,-16821.80898001,0.00024774,2]
[400657079,1767771041189,-83116.4033036,0.000248,2]
[400657080,1767771041198,-622309.500941,0.000249,2]
[400657081,1767771041207,-151.0,0.000249,7]
[400657082,1767771041216,-9800.0,0.00025,3]
[400657083,1767771041226,-1041.66666667,0.00025,30]
[400657084,1767771041235,-2660.39322093,0.00025,2]
[400657085,1767771041244,-2673.38990505,0.00025,2]
[400657086,1767771041253,-10364.0,0.00025,2]
[400657087,1767771041262,-500.0,0.00025,2]
[400657088,1767771041271,-300.0,0.00025,30]
[400657089,1767771041281,-1363.86254436,0.00025,2]
[400657090,1767771041290,-759.01355597,0.00025,2]
[400657091,1767771041299,-2000.0,0.00025076,7]
[400657092,1767771041309,-1908.17,0.000251,7]
[400657093,1767771041318,-579.85119945,0.000252,5]
[400657094,1767771041327,-250.0,0.00025205,2]
[400657095,1767771041336,-1181.07580657,0.00025205,2]
[400657096,1767771041345,-900.0,0.00025469,3]
[400657097,1767771041355,-500.0,0.0002548,2]
[400657098,1767771041363,-210.40515533,0.0002548,2]
[400657099,1767771041372,-500.0,0.0002548,2]
[400657100,1767771041381,-272.15124773,0.0002548,2]
[400657101,1767771041391,-174.35129213,0.0002548,2]
[400657102,1767771041400,-1000.0,0.000255,2]
[400657103,1767771041409,-500.0,0.00025617,2]
[400657104,1767771041418,-500.0,0.00025617,2]
[400657105,1767771041428,-500.0,0.00025644,7]
[400657106,1767771041438,-6640.35775662,0.00025699,2]
[400657107,1767771041447,-500.0,0.00025717,7]
[400657108,1767771041456,-2524.70302395,0.00025724,22]
[400657109,1767771041465,-1000.0,0.00025744,10]
[400657110,1767771041475,-1000.0,0.00025744,10]
[400657111,1767771041485,-350.0,0.00025753,2]
[400657112,1767771041495,-154.82317524,0.00025754,2]
[400657113,1767771041504,-306.8595936,0.00025754,2]
[400657114,1767771041513,-151.71242224,0.00025754,2]
[400657115,1767771041524,-2200.51,0.000258,14]
[400657116,1767771041533,-30000.0,0.00025812,2]
[400657117,1767771041543,-151.0,0.00025812,2]
[400657118,1767771041552,-156.587,0.00025812,2]
[400657119,1767771041561,-151.76560532,0.00025812,2]
[400657120,1767771041571,-500.0,0.00025813,7]
[400657121,1767771041580,-2000.0,0.00025823,7]
[400657122,1767771041589,-500.0,0.00025844,7]
[400657123,1767771041598,-500.0,0.00025886,7]
[400657124,1767771041607,-25963.54,0.000259,2]
[400657125,1767771041616,-2200.0,0.00025988,7]
[400657126,1767771041626,-148454.50312221,0.00026,30]
[400657127,1767771041635,-17467.00445744,0.00026,2]
[400657128,1767771041643,-161.0,0.00026,5]
[400657129,1767771041653,-258.12,0.000261,7]
[400657130,1767771041662,-243.07,0.000261,7]
[400657131,1767771041670,-194.56620473,0.0002616,2]
[400657132,1767771041680,-346.1,0.00026169,2]
[400657133,1767771041689,-500.0,0.00026251,7]
[400657134,1767771041698,-2200.0,0.00026277,7]
[400657135,1767771041707,-450.0,0.00026301,2]
[400657136,1767771041716,-2200.0,0.00026339,7]
[400657137,1767771041729,-31110.0,0.0002636,2]
[400657138,1767771041738,-1974.17602471,0.00026413,2]
[400657139,1767771041747,-500.0,0.00026426,7]
[400657140,1767771041756,-283.8,0.0002654,2]
[400657141,1767771041766,-200.0,0.0002654,14]
[400657142,1767771041776,-2000.0,0.00026569,7]
[400657143,1767771041786,-1908.17,0.000267,7]
[400657144,1767771041797,-568.72314314,0.00026745,2]
[400657145,1767771041806,-53819.04156786,0.00026778,14]
[400657146,1767771041815,-500.0,0.00026842,7]
[400657147,1767771041823,-550.0,0.00026849,2]
[400657148,1767771041832,-32261.07,0.00026908,2]
[400657149,1767771041841,-500.0,0.00026988,7]
[400657150,1767771041850,-1815.6497538,0.00027,2]
[400657151,1767771041859,-600.0,0.00027,14]
[400657152,1767771041868,-261657.74966145,0.00027,7]
[400657153,1767771041877,-1041.66666667,0.00027,7]
[400657154,1767771041886,-2200.0,0.00027105,7]
[400657155,1767771041896,-2839.09947771,0.0002716,25]
[400657156,1767771041905,-2200.0,0.00027181,7]
[400657157,1767771041915,-2000.0,0.00027315,7]
[400657158,1767771041924,-2200.0,0.00027347,7]
[400657159,1767771041933,-1346.23,0.00027397,2]
[400657160,1767771041943,-223.83334036,0.00027397,2]
[400657161,1767771041951,-650.0,0.00027397,5]
[400657162,1767771041960,-500.0,0.00027397,5]
[400657163,1767771041969,-514.81933417,0.00027397,5]
[400657164,1767771041979,-33454.72959,0.00027456,2]
[400657165,1767771041987,-25963.54,0.000275,2]
[400657166,1767771041996,-2200.51,0.000275,14]
[400657167,1767771042005,-45934.68102333,0.000275,2]
[400657168,1767771042014,-1000.0,0.00027777,5]
[400657169,1767771042023,-346.1,0.00027782,2]
[400657170,1767771042032,-1000.0,0.00027945,5]
[400657171,1767771042041,-750.0,0.00027945,5]
[400657172,1767771042050,-250.0,0.00027945,5]
[400657173,1767771042059,-250.0,0.00027945,5]
[400657174,1767771042068,-174.0,0.00027973,27]
[400657175,1767771042076,-500.0,0.00027974,7]
[400657176,1767771042085,-15317.68742945,0.00028,2]
[400657177,1767771042094,-519.98551023,0.00028,2]
[400657178,1767771042103,-34692.55458483,0.00028004,2]
[400657179,1767771042112,-5000.0,0.00028038,2]
[400657180,1767771042127,-2000.0,0.00028061,7]
[400657181,1767771042138,-500.0,0.0002815,7]
[400657182,1767771042148,-2200.0,0.00028177,7]
[400657183,1767771042157,-1908.17,0.000282,7]
[400657184,1767771042166,-1000.0,0.00028318,30]
[400657185,1767771042175,-1000.0,0.00028318,30]
[400657186,1767771042185,-579.0,0.00028318,30]
[400657187,1767771042194,-258.12,0.000284,7]
[400657188,1767771042203,-243.07,0.000284,7]
[400657189,1767771042212,-850.0,0.00028493,5]
[400657190,1767771042221,-1345.06654584,0.00028493,5]
[400657191,1767771042232,-350.0,0.00028493,5]
[400657192,1767771042241,-350.0,0.00028493,5]
[400657193,1767771042250,-500.0,0.00028494,2]
[400657194,1767771042260,-500.0,0.00028494,2]
[400657195,1767771042268,-500.0,0.00028494,2]
[400657196,1767771042278,-154.51572359,0.00028494,2]
[400657197,1767771042287,-153.90091269,0.00028494,2]
[400657198,1767771042296,-500.0,0.00028494,2]
[400657199,1767771042305,-176.1819283,0.00028494,2]
[400657200,1767771042315,-500.0,0.00028494,2]
[400657201,1767771042324,-151.52117963,0.00028494,2]
[400657202,1767771042333,-500.0,0.00028494,2]
[400657203,1767771042343,-957.0,0.00028494,2]
[400657204,1767771042352,-500.0,0.00028494,2]
[400657205,1767771042361,-150.75126271,0.00028494,2]
[400657206,1767771042370,-146947.85475378,0.000285,7]
[400657207,1767771042378,-4453.30523489,0.0002854,2]
[400657208,1767771042387,-35976.17910447,0.00028552,2]
[400657209,1767771042397,-3162.33162454,0.00028596,27]
[400657210,1767771042405,-261.88445837,0.00028631,2]
[400657211,1767771042414,-500.0,0.00028631,2]
[400657212,1767771042423,-500.0,0.00028631,2]
[400657213,1767771042432,-500.0,0.00028631,2]
[400657214,1767771042532,-261.5353383,0.00028631,2]
[400657215,1767771042557,-151.56017143,0.00028631,2]
[400657216,1767771042567,-229.44903306,0.00028631,2]
[400657217,1767771042577,-500.0,0.00028631,2]
[400657218,1767771042586,-500.0,0.00028631,2]
[400657219,1767771042595,-500.0,0.00028631,2]
[400657220,1767771042604,-957.0,0.00028631,2]
[400657221,1767771042613,-500.0,0.00028631,2]
[400657222,1767771042622,-2200.0,0.00028676,7]
[400657223,1767771042632,-2200.0,0.00028732,7]
[400657224,1767771042641,-500.0,0.00028739,7]
[400657225,1767771042649,-614.01967667,0.00028745,2]
[400657226,1767771042658,-26870.27186945,0.0002876,2]
[400657227,1767771042667,-28361.51006566,0.0002876,20]
[400657228,1767771042677,-4000.0,0.0002876,5]
[400657229,1767771042686,-19134.21875192,0.0002876,2]
[400657230,1767771042694,-1346.23,0.00028767,4]
[400657231,1767771042703,-500.0,0.00028768,2]
[400657232,1767771042712,-500.0,0.00028768,2]
[400657233,1767771042721,-500.0,0.00028768,2]
[400657234,1767771042733,-155.41975541,0.00028768,2]
[400657235,1767771042742,-152.02997996,0.00028768,2]
[400657236,1767771042751,-500.0,0.00028768,2]
[400657237,1767771042760,-595.12568369,0.00028768,2]
[400657238,1767771042769,-259.14783661,0.00028768,2]
[400657239,1767771042778,-957.0,0.00028768,2]
[400657240,1767771042787,-500.0,0.00028768,2]
[400657241,1767771042795,-300.0,0.00028795,2]
[400657242,1767771042804,-300.0,0.00028795,2]
[400657243,1767771042813,-172.38864068,0.000288,7]
[400657244,1767771042823,-2000.0,0.00028807,7]
[400657245,1767771042831,-300.0,0.00028822,2]
[400657246,1767771042840,-300.0,0.00028822,2]
[400657247,1767771042849,-300.0,0.00028822,2]
[400657248,1767771042858,-300.0,0.00028822,2]
[400657249,1767771042867,-300.0,0.00028822,2]
[400657250,1767771042876,-300.0,0.00028822,2]
[400657251,1767771042885,-500.0,0.00028905,2]
[400657252,1767771042894,-621.60339535,0.00028905,2]
[400657253,1767771042903,-500.0,0.00028905,2]
[400657254,1767771042912,-160.56827625,0.00028905,2]
[400657255,1767771042920,-177.57781539,0.00028905,2]
[400657256,1767771042930,-266.491439,0.00028905,2]
[400657257,1767771042939,-957.0,0.00028905,2]
[400657258,1767771042948,-500.0,0.00028905,2]
[400657259,1767771042956,-6640.35775662,0.00028913,2]
[400657260,1767771042966,-500.0,0.00028933,7]
[400657261,1767771042975,-10000.0,0.00028941,2]
[400657262,1767771042984,-25963.54,0.00029,2]
[400657263,1767771042993,-183576.914528,0.00029,10]
[400657264,1767771043002,-1041.66666667,0.00029,10]
[400657265,1767771043011,-151.0,0.00029,7]
[400657266,1767771043030,-151.0,0.00029,7]
[400657267,1767771043042,-184.812283,0.00029,7]
[400657268,1767771043051,-151.0,0.00029,7]
[400657269,1767771043061,-184.812283,0.00029,7]
[400657270,1767771043071,-184.812283,0.00029,7]
[400657271,1767771043080,-184.812283,0.00029,7]
[400657272,1767771043090,-151.0,0.00029,7]
[400657273,1767771043100,-151.0,0.00029,7]
[400657274,1767771043109,-151.0,0.00029,7]
[400657275,1767771043119,-634.815792,0.00029,7]
[400657276,1767771043128,-634.815792,0.00029,7]
[400657277,1767771043138,-634.815792,0.00029,7]
[400657278,1767771043148,-151.0,0.00029,7]
[400657279,1767771043158,-634.815792,0.00029,7]
[400657280,1767771043168,-151.0,0.00029,7]
[400657281,1767771043177,-247.352857,0.00029,7]
[400657282,1767771043187,-247.352857,0.00029,7]
[400657283,1767771043196,-247.352857,0.00029,7]
[400657284,1767771043206,-247.352857,0.00029,7]
[400657285,1767771043216,-298.315005,0.00029,7]
[400657286,1767771043225,-298.315005,0.00029,7]
[400657287,1767771043236,-298.315005,0.00029,7]
[400657288,1767771043246,-151.0,0.00029,7]
[400657289,1767771043255,-151.0,0.00029,7]
[400657290,1767771043265,-151.0,0.00029,7]
[400657291,1767771043274,-151.0,0.00029,7]
[400657292,1767771043284,-298.315005,0.00029,7]
[400657293,1767771043293,-151.0,0.00029,7]
[400657294,1767771043304,-151.0,0.00029,7]
[400657295,1767771043314,-205.742012,0.00029,7]
[400657296,1767771043323,-151.0,0.00029,7]
[400657297,1767771043332,-205.742012,0.00029,7]
[400657298,1767771043343,-151.0,0.00029,7]
[400657299,1767771043353,-151.0,0.00029,7]
[400657300,1767771043362,-205.742012,0.00029,7]